[Event "World Junior U20 Open 2018"]
[Site "Gebze"]
[Date "2018.09.06"]
[Round "2.68"]
[White "Nastase, Robert-Paul"]
[Black "Gunduz, Umut Erdem"]
[Result "1-0"]
[ECO "C51"]
[WhiteElo "2313"]
[BlackElo "2119"]
[Annotator "NA"]
[PlyCount "63"]
[EventDate "2018.09.05"]
[EventType "swiss"]
[EventCountry "TUR"]
[SourceTitle "playchess.com"]
[Source "ChessBase"]
[SourceQuality "1"]
[TimeControl "40/5400+30:1800+30"]

1. e4 {[%emt 0:00:30]} e5 {[%emt 0:00:30]} 2. Nf3 {[%emt 0:00:30]} Nc6 {[%emt 0:00:00]} 3. Bc4 {[%emt 0:00:00]} Bc5 {[%emt 0:00:00]} 4. b4 {[%emt 0:00:00]} Bxb4 {[%emt 0:00:30]} 5. c3 {[%emt 0:00:00]} Be7 {[%emt 0:00:30]} 6. d4 {[%emt 0:00:00]} Na5 {[%emt 0:00:30]} 7. Be2 {[%emt 0:00:00]} d6 {[%emt 0:09:30]} 8. Qa4+ {[%emt 0:00:00]} c6 {[%emt 0:00:30]} 9. dxe5 {[%emt 0:00:00]} dxe5 {[%emt 0:01:30]} 10. Nxe5 {[%emt 0:00:00]} Nf6 {[%emt 0:03:30]} 11. O-O {[%emt 0:00:00]} O-O {[%emt 0:01:30]} 12. Rd1 {[%emt 0:11:00]} Qc7 {[%emt 0:03:30]} 13. Bf4 {[%emt 0:00:30]} b5 {[%emt 0:17:30]} 14. Qc2 {[%emt 0:01:30]} Qb6 {[%emt 0:04:30]} 15. Nd2 {[%emt 0:06:30]} Be6 {[%emt 0:05:30]} 16. Ndf3 {[%emt 0:10:30]} Ng4 {[%emt 0:06:30]} 17. Nd3 {[%emt 0:03:30]} Nc4 {[%emt 0:02:30]} 18. e5 {[%emt 0:09:30]} Na3 {[%emt 0:35:25]} 19. Qd2 {[%emt 0:00:30]} c5 {[%emt 0:02:33]} 20. Rf1 {[%emt 0:17:30]} f6 {[%emt 0:01:09]} 21. exf6 {[%emt 0:02:30]} Nxf6 {[%emt 0:00:30]} 22. Nde5 {[%emt 0:00:30]} Rad8 {[%emt 0:02:19]} 23. Qb2 {[%emt 0:01:30]} Nd5 {[%emt 0:00:28]} 24. Bg5 {[%emt 0:01:30]} Bxg5 {[%emt 0:00:33]} 25. Nxg5 {[%emt 0:00:00]} b4 {[%emt 0:00:29]} 26. cxb4 {[%emt 0:02:00]} cxb4 {[%emt 0:00:13]} 27. Rac1 {[%emt 0:03:30]} Rc8 {[%emt 0:00:47]} 28. Nc4 {[%emt 0:00:30]} Nxc4 {[%emt 0:00:27]} 29. Bxc4 {[%emt 0:00:30]} Rfd8 {[%emt 0:00:35]} 30. Qe5 {[%emt 0:01:30]} Rxc4 {[%emt 0:00:30]} 31. Nxe6 {[%emt 0:00:30]} Re8 {[%emt 0:00:30]} 32. Qxg7# {[%emt 0:00:30]} 1-0

[Event "World Junior U20 Open 2018"]
[Site "Gebze"]
[Date "2018.09.06"]
[Round "2.69"]
[White "Aydincelebi, Kagan"]
[Black "Zlatin, Alexander"]
[Result "1-0"]
[ECO "C68"]
[WhiteElo "2060"]
[BlackElo "2312"]
[Annotator "NA"]
[PlyCount "63"]
[EventDate "2018.09.05"]
[EventType "swiss"]
[EventCountry "TUR"]
[SourceTitle "playchess.com"]
[Source "ChessBase"]
[SourceQuality "1"]
[TimeControl "40/5400+30:1800+30"]

1. e4 {[%emt 0:00:30]} e5 {[%emt 0:00:30]} 2. Nf3 {[%emt 0:00:30]} Nc6 {[%emt 0:00:00]} 3. Bb5 {[%emt 0:00:00]} a6 {[%emt 0:00:00]} 4. Bxc6 {[%emt 0:00:00]} dxc6 {[%emt 0:00:30]} 5. O-O {[%emt 0:00:30]} Bg4 {[%emt 0:00:30]} 6. h3 {[%emt 0:00:30]} h5 {[%emt 0:00:30]} 7. d3 {[%emt 0:00:30]} Qf6 {[%emt 0:00:30]} 8. Nbd2 {[%emt 0:00:30]} Ne7 {[%emt 0:00:30]} 9. Nc4 {[%emt 0:00:30]} Bxf3 {[%emt 0:00:30]} 10. Qxf3 {[%emt 0:00:30]} Qxf3 {[%emt 0:00:30]} 11. gxf3 {[%emt 0:00:30]} Ng6 {[%emt 0:00:30]} 12. Rd1 {[%emt 0:00:30]} O-O-O {[%emt 0:00:30]} 13. Kf1 {[%emt 0:00:30]} b6 {[%emt 0:00:30]} 14. Be3 {[%emt 0:00:30]} c5 {[%emt 0:00:30]} 15. a4 {[%emt 0:00:30]} a5 {[%emt 0:00:30]} 16. Ke2 {[%emt 0:00:30]} Be7 {[%emt 0:00:30]} 17. Rg1 {[%emt 0:00:30]} Bf6 {[%emt 0:00:30]} 18. c3 {[%emt 0:00:30]} Rd7 {[%emt 0:00:30]} 19. Rad1 {[%emt 0:03:30]} Rhd8 {[%emt 0:16:30]} 20. Rd2 {[%emt 0:00:00]} Kb7 {[%emt 0:00:30]} 21. Rb1 {[%emt 0:02:00]} Kc6 {[%emt 0:04:30]} 22. b4 {[%emt 0:15:30]} axb4 {[%emt 0:15:30]} 23. cxb4 {[%emt 0:00:30]} cxb4 {[%emt 0:19:30]} 24. Rxb4 {[%emt 0:00:00]} Nf4+ {[%emt 0:06:30]} 25. Bxf4 {[%emt 0:01:00]} exf4 {[%emt 0:01:30]} 26. Rc2 {[%emt 0:00:30]} Kb7 {[%emt 0:00:30]} 27. Na5+ {[%emt 0:00:30]} Ka6 {[%emt 0:02:30]} 28. Nc6 {[%emt 0:00:30]} Re8 {[%emt 0:02:30]} 29. a5 {[%emt 0:12:30]} bxa5 {[%emt 0:04:30]} 30. Rb8 {[%emt 0:01:30]} Re6 {[%emt 0:01:30]} 31. Rb1 {[%emt 0:00:30]} Re8 {[%emt 0:01:30]} 32. Rc5 {[%emt 0:00:30]} 1-0

[Event "World Junior U20 Open 2018"]
[Site "Gebze"]
[Date "2018.09.06"]
[Round "2.70"]
[White "Suleymenov, Alisher"]
[Black "Cansun, Can Alp"]
[Result "1-0"]
[ECO "E05"]
[WhiteElo "2307"]
[BlackElo "2110"]
[Annotator "NA"]
[PlyCount "83"]
[EventDate "2018.09.05"]
[EventType "swiss"]
[EventCountry "TUR"]
[SourceTitle "playchess.com"]
[Source "ChessBase"]
[SourceQuality "1"]
[TimeControl "40/5400+30:1800+30"]

1. d4 {[%emt 0:01:30]} Nf6 {[%emt 0:00:30]} 2. c4 {[%emt 0:00:30]} e6 {[%emt 0:00:30]} 3. g3 {[%emt 0:00:30]} d5 {[%emt 0:00:30]} 4. Nf3 {[%emt 0:00:30]} Be7 {[%emt 0:00:30]} 5. Bg2 {[%emt 0:00:00]} O-O {[%emt 0:00:30]} 6. O-O {[%emt 0:00:00]} dxc4 {[%emt 0:00:00]} 7. Qc2 {[%emt 0:00:00]} a6 {[%emt 0:00:00]} 8. a4 {[%emt 0:00:00]} Bd7 {[%emt 0:00:30]} 9. Rd1 {[%emt 0:00:00]} Bc6 {[%emt 0:08:30]} 10. Nc3 {[%emt 0:01:00]} Bb4 {[%emt 0:06:30]} 11. Bg5 {[%emt 0:00:30]} Bxc3 {[%emt 0:07:30]} 12. bxc3 {[%emt 0:01:30]} Be4 {[%emt 0:06:30]} 13. Qc1 {[%emt 0:20:30]} Qd5 {[%emt 0:08:30]} 14. Bxf6 {[%emt 0:10:30]} gxf6 {[%emt 0:00:00]} 15. Qf4 {[%emt 0:00:30]} Nd7 {[%emt 0:08:00]} 16. Qxc7 {[%emt 0:04:30]} Rfc8 {[%emt 0:02:30]} 17. Qf4 {[%emt 0:00:30]} b5 {[%emt 0:07:30]} 18. Qg4+ {[%emt 0:08:30]} Kf8 {[%emt 0:03:30]} 19. Qh4 {[%emt 0:02:30]} Ke7 {[%emt 0:03:30]} 20. Bh3 {[%emt 0:05:30]} Bf5 {[%emt 0:20:17]} 21. Bg2 {[%emt 0:03:30]} Be4 {[%emt 0:00:06]} 22. Bf1 {[%emt 0:00:30]} Bg6 {[%emt 0:00:33]} 23. Ne5 {[%emt 0:03:30]} Be4 {[%emt 0:09:40]} 24. Nxd7 {[%emt 0:05:30]} Kxd7 {[%emt 0:00:11]} 25. Qxf6 {[%emt 0:00:30]} Ke8 {[%emt 0:02:07]} 26. Rd2 {[%emt 0:06:30]} b4 {[%emt 0:00:19]} 27. f3 {[%emt 0:00:00]} Qf5 {[%emt 0:02:53]} 28. Qxf5 {[%emt 0:07:52]} Bxf5 {[%emt 0:00:01]} 29. e4 {[%emt 0:00:40]} Bg6 {[%emt 0:00:34]} 30. cxb4 {[%emt 0:00:12]} f5 {[%emt 0:00:06]} 31. Rc1 {[%emt 0:08:30]} fxe4 {[%emt 0:01:00]} 32. fxe4 {[%emt 0:00:30]} Bxe4 {[%emt 0:00:30]} 33. Rxc4 {[%emt 0:00:30]} Rxc4 {[%emt 0:00:30]} 34. Bxc4 {[%emt 0:00:30]} Rb8 {[%emt 0:00:34]} 35. Rb2 {[%emt 0:00:08]} Rb6 {[%emt 0:00:28]} 36. Kf2 {[%emt 0:00:36]} Ke7 {[%emt 0:00:21]} 37. Ke3 {[%emt 0:00:35]} Bg6 {[%emt 0:00:03]} 38. Bd3 {[%emt 0:01:00]} Be8 {[%emt 0:00:51]} 39. a5 {[%emt 0:00:15]} Rd6 {[%emt 0:00:01]} 40. Bxh7 {[%emt 0:00:00]} Rc6 {[%emt 0:00:00]} 41. Rc2 {[%emt 0:01:12]} Rd6 {[%emt 0:01:55]} 42. Bd3 {[%emt 0:01:30]} 1-0

[Event "World Junior U20 Open 2018"]
[Site "Gebze"]
[Date "2018.09.06"]
[Round "2.72"]
[White "Ozenir, Ekin Baris"]
[Black "Erdogan, Anil Berk"]
[Result "1-0"]
[ECO "A45"]
[WhiteElo "2303"]
[BlackElo "2083"]
[Annotator "NA"]
[PlyCount "43"]
[EventDate "2018.09.05"]
[EventType "swiss"]
[EventCountry "TUR"]
[SourceTitle "playchess.com"]
[Source "ChessBase"]
[SourceQuality "1"]
[TimeControl "40/5400+30:1800+30"]

1. d4 {[%emt 0:00:30]} Nf6 {[%emt 0:00:30]} 2. Bg5 {[%emt 0:00:30]} e6 {[%emt 0:00:30]} 3. e4 {[%emt 0:00:30]} c5 {[%emt 0:00:00]} 4. d5 {[%emt 0:02:30]} h6 {[%emt 0:01:00]} 5. Bxf6 {[%emt 0:01:30]} Qxf6 {[%emt 0:00:30]} 6. Nc3 {[%emt 0:00:30]} a6 {[%emt 0:00:30]} 7. Nf3 {[%emt 0:02:30]} d6 {[%emt 0:03:30]} 8. a4 {[%emt 0:03:30]} e5 {[%emt 0:13:30]} 9. Nd2 {[%emt 0:03:30]} b6 {[%emt 0:13:30]} 10. Ra3 {[%emt 0:07:30]} Be7 {[%emt 0:08:30]} 11. Rb3 {[%emt 0:05:30]} Nd7 {[%emt 0:01:30]} 12. Be2 {[%emt 0:02:30]} O-O {[%emt 0:02:30]} 13. O-O {[%emt 0:00:30]} g6 {[%emt 0:02:30]} 14. Bg4 {[%emt 0:04:30]} Qg5 {[%emt 0:10:30]} 15. Nc4 {[%emt 0:11:30]} f5 {[%emt 0:04:30]} 16. exf5 {[%emt 0:05:30]} gxf5 {[%emt 0:00:30]} 17. Bh3 {[%emt 0:00:30]} Qf6 {[%emt 0:15:09]} 18. Qh5 {[%emt 0:08:30]} Bd8 {[%emt 0:05:12]} 19. Ne2 {[%emt 0:03:30]} Rf7 {[%emt 0:10:20]} 20. Rg3+ {[%emt 0:03:30]} Rg7 {[%emt 0:02:17]} 21. Bxf5 {[%emt 0:01:30]} b5 {[%emt 0:02:01]} 22. Be6+ {[%emt 0:01:30]} 1-0

[Event "World Junior U20 Open 2018"]
[Site "Gebze"]
[Date "2018.09.06"]
[Round "2.74"]
[White "Milosevic, Milos"]
[Black "Ozturk, Efe Hakan"]
[Result "1-0"]
[ECO "B23"]
[WhiteElo "2292"]
[BlackElo "2065"]
[Annotator "NA"]
[PlyCount "59"]
[EventDate "2018.09.05"]
[EventType "swiss"]
[EventCountry "TUR"]
[SourceTitle "playchess.com"]
[Source "ChessBase"]
[SourceQuality "1"]
[TimeControl "40/5400+30:1800+30"]

1. e4 {[%emt 0:00:30]} c5 {[%emt 0:00:30]} 2. Nc3 {[%emt 0:00:00]} d6 {[%emt 0:00:30]} 3. d4 {[%emt 0:00:00]} cxd4 {[%emt 0:00:30]} 4. Qxd4 {[%emt 0:00:30]} Nc6 {[%emt 0:00:30]} 5. Qd2 {[%emt 0:00:00]} g6 {[%emt 0:02:30]} 6. b3 {[%emt 0:00:00]} Bg7 {[%emt 0:01:30]} 7. Bb2 {[%emt 0:00:00]} Nf6 {[%emt 0:02:30]} 8. O-O-O {[%emt 0:00:00]} O-O {[%emt 0:01:30]} 9. f3 {[%emt 0:00:30]} a6 {[%emt 0:08:30]} 10. g4 {[%emt 0:01:30]} b5 {[%emt 0:01:30]} 11. h4 {[%emt 0:03:30]} h5 {[%emt 0:03:30]} 12. Nd5 {[%emt 0:13:30]} e5 {[%emt 0:25:30]} 13. Nxf6+ $16 {[%emt 0:02:30]} Qxf6 {[%emt 0:01:30]} 14. gxh5 {[%emt 0:00:30]} gxh5 {[%emt 0:00:30]} 15. Kb1 {[%emt 0:01:30]} Bh6 {[%emt 0:02:30]} 16. Qf2 {[%emt 0:06:30]} Bb7 {[%emt 0:06:30]} 17. Nh3 {[%emt 0:00:30]} Rac8 {[%emt 0:02:30]} 18. Ng5 {[%emt 0:11:30]} Nb4 {[%emt 0:09:30]} 19. Rd2 {[%emt 0:01:30]} d5 {[%emt 0:14:17]} 20. a3 {[%emt 0:04:30]} Nxc2 {[%emt 0:00:15]} 21. Rxc2 {[%emt 0:00:30]} dxe4 {[%emt 0:00:45]} 22. Rg1 {[%emt 0:01:30]} Kh8 {[%emt 0:05:41]} 23. Rxc8 {[%emt 0:00:30]} Bxc8 {[%emt 0:00:20]} 24. f4 {[%emt 0:00:30]} Bf5 {[%emt 0:03:50]} 25. Ka2 {[%emt 0:01:30]} Qe7 {[%emt 0:01:48]} 26. fxe5 {[%emt 0:00:30]} Bg6 {[%emt 0:01:21]} 27. e6+ {[%emt 0:01:30]} Bg7 {[%emt 0:00:44]} 28. Nxf7+ {[%emt 0:01:30]} Kh7 {[%emt 0:01:16]} 29. Rxg6 {[%emt 0:01:30]} Kxg6 {[%emt 0:00:50]} 30. Qg3+ {[%emt 0:00:00]} 1-0

[Event "World Junior U20 Open 2018"]
[Site "Gebze"]
[Date "2018.09.06"]
[Round "2.75"]
[White "Daghan, Devran"]
[Black "Taalaibekov, Tagir"]
[Result "0-1"]
[ECO "B07"]
[WhiteElo "2004"]
[BlackElo "2291"]
[Annotator "NA"]
[PlyCount "68"]
[EventDate "2018.09.05"]
[EventType "swiss"]
[EventCountry "TUR"]
[SourceTitle "playchess.com"]
[Source "ChessBase"]
[SourceQuality "1"]
[TimeControl "40/5400+30:1800+30"]

1. e4 {[%emt 0:00:30]} d6 {[%emt 0:00:30]} 2. d4 {[%emt 0:00:30]} Nf6 {[%emt 0:00:30]} 3. Nc3 {[%emt 0:00:30]} Nbd7 {[%emt 0:00:00]} 4. Be3 {[%emt 0:15:30]} e5 {[%emt 0:00:00]} 5. f3 {[%emt 0:00:30]} Be7 {[%emt 0:02:30]} 6. Nge2 {[%emt 0:03:30]} c6 {[%emt 0:03:30]} 7. Qd2 {[%emt 0:14:30]} Qc7 {[%emt 0:00:30]} 8. O-O-O {[%emt 0:00:30]} a6 {[%emt 0:02:30]} 9. g4 {[%emt 0:02:30]} b5 {[%emt 0:03:30]} 10. Ng3 {[%emt 0:02:30]} exd4 {[%emt 0:07:30]} 11. Qxd4 $16 {[%emt 0:18:30]} Ne5 {[%emt 0:00:30]} 12. Be2 {[%emt 0:00:30]} c5 {[%emt 0:17:30]} 13. Nd5 {[%emt 0:16:30]} Nxd5 {[%emt 0:01:30]} 14. Qxd5 {[%emt 0:00:30]} Bb7 {[%emt 0:00:30]} 15. Qd2 {[%emt 0:00:30]} g6 {[%emt 0:00:30]} 16. f4 {[%emt 0:10:13]} Nd7 {[%emt 0:00:30]} 17. g5 {[%emt 0:02:38]} O-O-O {[%emt 0:04:30]} 18. c4 {[%emt 0:06:52]} Bc6 {[%emt 0:03:30]} 19. Rhf1 {[%emt 0:00:32]} Rhe8 {[%emt 0:00:30]} 20. f5 {[%emt 0:01:39]} Ne5 {[%emt 0:01:30]} 21. f6 {[%emt 0:00:26]} Bf8 {[%emt 0:00:30]} 22. Qc2 {[%emt 0:00:35]} bxc4 {[%emt 0:01:30]} 23. Bxc4 {[%emt 0:00:32]} Nxc4 {[%emt 0:00:30]} 24. Qxc4 {[%emt 0:00:04]} Bb5 {[%emt 0:00:30]} 25. Qc3 {[%emt 0:00:57]} Bxf1 {[%emt 0:01:30]} 26. Rxf1 {[%emt 0:00:00]} d5 {[%emt 0:00:30]} 27. Bf4 {[%emt 0:01:01]} Bd6 {[%emt 0:02:30]} 28. Bxd6 {[%emt 0:00:30]} Rxd6 {[%emt 0:00:30]} 29. exd5 {[%emt 0:00:16]} Rxd5 {[%emt 0:00:00]} 30. Qc4 {[%emt 0:00:29]} Qd6 {[%emt 0:00:00]} 31. Ne4 {[%emt 0:00:39]} Qe6 {[%emt 0:01:30]} 32. Re1 {[%emt 0:00:35]} Rd1+ {[%emt 0:02:30]} 33. Kxd1 {[%emt 0:00:32]} Rd8+ {[%emt 0:00:00]} 34. Nd6+ {[%emt 0:00:00]} Rxd6+ {[%emt 0:00:00]} 0-1

[Event "World Junior U20 Open 2018"]
[Site "Gebze"]
[Date "2018.09.06"]
[Round "2.76"]
[White "Pang, Tao"]
[Black "Ozgur, Tibet Kagan"]
[Result "1-0"]
[ECO "E11"]
[WhiteElo "2290"]
[BlackElo "2056"]
[Annotator "NA"]
[PlyCount "155"]
[EventDate "2018.09.05"]
[EventType "swiss"]
[EventCountry "TUR"]
[SourceTitle "playchess.com"]
[Source "ChessBase"]
[SourceQuality "1"]
[TimeControl "40/5400+30:1800+30"]

1. Nf3 {[%emt 0:00:30]} Nf6 {[%emt 0:00:30]} 2. c4 {[%emt 0:00:00]} e6 {[%emt 0:00:00]} 3. d4 {[%emt 0:00:00]} Bb4+ {[%emt 0:00:00]} 4. Bd2 {[%emt 0:00:30]} Qe7 {[%emt 0:00:30]} 5. Nc3 {[%emt 0:01:30]} Bxc3 {[%emt 0:02:30]} 6. Bxc3 {[%emt 0:00:30]} Ne4 {[%emt 0:00:30]} 7. Qc2 {[%emt 0:03:30]} Nxc3 {[%emt 0:01:30]} 8. Qxc3 {[%emt 0:00:00]} O-O {[%emt 0:00:30]} 9. g3 {[%emt 0:03:00]} d6 {[%emt 0:05:30]} 10. Bg2 {[%emt 0:00:30]} Nd7 {[%emt 0:01:30] E11: Bogo-Indian} (10... Re8 11. O-O e5 12. dxe5 dxe5 13. Nd2 Nd7 14. b4 Nf6 15. Ne4 Nxe4 16. Bxe4 c6 17. Rfd1 Bg4 18. Rd2 {0-1 (27) Sargissian,G (2671)-Tkachiev,V (2649) Khanty-Mansiysk 2013}) 11. O-O {[%emt 0:03:30]} e5 {[%emt 0:01:30]} 12. Rfd1 {[%emt 0:18:30]} e4 {[%emt 0:05:30]} 13. Nd2 {[%emt 0:00:30]} Nf6 {[%emt 0:05:30]} 14. Nf1 {[%emt 0:02:30]} d5 $146 {[%emt 0:12:30]} ({Predecessor:} 14... Bd7 15. Ne3 c6 16. b4 Rac8 {½-½ (42) Schmidt,W (2228)-Zude,A (2390) Hessen 2016}) 15. cxd5 {[%emt 0:14:30]} Nxd5 {[%emt 0:02:30]} 16. Qc5 {[%emt 0:00:30]} Qe6 {[%emt 0:13:30]} 17. Rac1 {[%emt 0:05:30]} c6 {[%emt 0:04:30]} 18. e3 {[%emt 0:07:30]} Re8 {[%emt 0:11:30]} 19. Nd2 {[%emt 0:00:30]} Qg6 {[%emt 0:00:30]} 20. Qc2 {[%emt 0:05:30]} Bg4 {[%emt 0:04:30]} 21. Re1 {[%emt 0:02:30]} Bf5 {[%emt 0:04:30]} 22. a3 {[%emt 0:00:30]} h5 {[%emt 0:04:05]} 23. h4 {[%emt 0:00:30]} Qe6 {[%emt 0:02:16]} 24. Nb3 {[%emt 0:01:30]} Rac8 {[%emt 0:03:43]} 25. Nc5 {[%emt 0:04:30]} Qe7 {[%emt 0:00:01]} 26. f3 {[%emt 0:07:44]} Nf6 {[%emt 0:00:02]} 27. Qf2 {[%emt 0:08:34]} g6 {[%emt 0:04:43]} 28. f4 {[%emt 0:02:05]} b6 {[%emt 0:04:17]} 29. Na4 {[%emt 0:00:20]} c5 {[%emt 0:04:03]} 30. dxc5 {[%emt 0:00:20]} b5 {[%emt 0:00:56]} 31. Nc3 {[%emt 0:00:05]} Rxc5 {[%emt 0:01:16]} 32. b4 {[%emt 0:00:15]} Rc4 {[%emt 0:00:30]} 33. Nxb5 {[%emt 0:00:31]} Rec8 {[%emt 0:00:31]} 34. Rxc4 {[%emt 0:00:38]} Rxc4 {[%emt 0:00:04]} 35. Bf1 {[%emt 0:00:00]} Rc8 {[%emt 0:00:50]} 36. Qb2 {[%emt 0:01:38]} Nd5 {[%emt 0:00:35]} 37. Qd4 {[%emt 0:00:33]} Nb6 {[%emt 0:00:29]} 38. Nd6 {[%emt 0:01:01]} Rd8 {[%emt 0:01:01]} 39. Nxf5 {[%emt 0:00:30]} gxf5 {[%emt 0:00:00]} 40. Qc5 {[%emt 0:00:00]} Qe6 {[%emt 0:00:00]} 41. Qc2 {[%emt 0:03:46]} Rc8 {[%emt 0:09:38]} 42. Qd2 $16 {[%emt 0:02:30]} Qb3 {[%emt 0:10:43]} 43. Qe2 {[%emt 0:04:30]} Qxa3 {[%emt 0:02:23]} 44. Qxh5 {[%emt 0:05:30]} Qxb4 {[%emt 0:00:03]} 45. Rd1 {[%emt 0:00:30]} Qc5 {[%emt 0:05:09]} 46. Rd4 {[%emt 0:01:30]} Qa3 {[%emt 0:05:04]} 47. Kf2 {[%emt 0:01:30]} Qa2+ {[%emt 0:00:01]} 48. Be2 {[%emt 0:00:30]} Qe6 {[%emt 0:00:28]} 49. g4 {[%emt 0:01:30]} fxg4 {[%emt 0:00:39]} 50. Bxg4 {[%emt 0:00:30]} Rc2+ {[%emt 0:00:02]} 51. Kg3 {[%emt 0:00:30]} Qe7 {[%emt 0:01:27]} 52. Bf5 {[%emt 0:00:30]} f6 {[%emt 0:01:00]} 53. Qg6+ {[%emt 0:00:30]} Kf8 {[%emt 0:00:25]} 54. Rxe4 {[%emt 0:00:00]} Qf7 {[%emt 0:00:34]} 55. Qh6+ {[%emt 0:04:06]} Qg7+ {[%emt 0:00:30]} 56. Qxg7+ {[%emt 0:00:29]} Kxg7 {[%emt 0:00:00]} 57. Re7+ {[%emt 0:00:10]} Kf8 {[%emt 0:00:00]} 58. Re6 {[%emt 0:00:51]} Rc3 {[%emt 0:01:28]} 59. Rxf6+ {[%emt 0:00:07]} Kg7 {[%emt 0:00:31]} 60. Re6 {[%emt 0:00:19]} Nd5 {[%emt 0:00:18]} 61. Kf3 {[%emt 0:00:30]} Kf7 {[%emt 0:00:43]} 62. Re5 {[%emt 0:00:26]} Ne7 {[%emt 0:00:25]} 63. Be4 {[%emt 0:00:14]} Rc1 {[%emt 0:01:00]} 64. Ra5 {[%emt 0:00:14]} Rh1 {[%emt 0:00:34]} 65. h5 {[%emt 0:00:10]} Rh3+ {[%emt 0:00:16]} 66. Ke2 {[%emt 0:00:05]} Rh2+ {[%emt 0:00:16]} 67. Kd3 {[%emt 0:00:09]} Nc8 {[%emt 0:00:24]} 68. Bf5 {[%emt 0:00:20]} Ne7 {[%emt 0:00:59]} 69. Bg6+ {[%emt 0:00:08]} Nxg6 {[%emt 0:00:00]} 70. hxg6+ {[%emt 0:00:12]} Kxg6 {[%emt 0:00:27]} 71. Rxa7 {[%emt 0:00:30]} Rh3 {[%emt 0:00:25]} 72. Kd4 {[%emt 0:00:00]} Rf3 {[%emt 0:00:35]} 73. Ra6+ {[%emt 0:00:00]} Kf7 {[%emt 0:00:00]} 74. Ke4 {[%emt 0:00:30]} Rh3 {[%emt 0:00:31]} 75. f5 {[%emt 0:00:00]} Rh8 {[%emt 0:01:05]} 76. Kf4 {[%emt 0:00:00]} Rh4+ {[%emt 0:00:27]} 77. Ke5 {[%emt 0:00:00]} Rh5 {[%emt 0:01:03]} 78. e4 {[%emt 0:00:00]} 1-0

[Event "World Junior U20 Open 2018"]
[Site "Gebze"]
[Date "2018.09.06"]
[Round "2.77"]
[White "Cadilhac, Igor Tokuichi Kikuc"]
[Black "Baylav, Can"]
[Result "1-0"]
[ECO "B90"]
[WhiteElo "2286"]
[BlackElo "2026"]
[Annotator "NA"]
[PlyCount "63"]
[EventDate "2018.09.05"]
[EventType "swiss"]
[EventCountry "TUR"]
[SourceTitle "playchess.com"]
[Source "ChessBase"]
[SourceQuality "1"]
[TimeControl "40/5400+30:1800+30"]

1. e4 {[%emt 0:00:30]} c5 {[%emt 0:00:30]} 2. Nf3 {[%emt 0:00:30]} d6 {[%emt 0:00:30]} 3. d4 {[%emt 0:00:30]} cxd4 {[%emt 0:00:30]} 4. Nxd4 {[%emt 0:00:30]} Nf6 {[%emt 0:00:30]} 5. Nc3 {[%emt 0:00:30]} a6 {[%emt 0:00:30]} 6. Nb3 {[%emt 0:00:00]} e6 {[%emt 0:01:30]} 7. g4 {[%emt 0:00:00]} Be7 {[%emt 0:02:30]} 8. Be3 {[%emt 0:04:30]} h6 {[%emt 0:02:30]} 9. Qe2 {[%emt 0:21:30]} b5 {[%emt 0:01:30]} 10. Bg2 {[%emt 0:15:30]} Bb7 {[%emt 0:05:30]} 11. f4 {[%emt 0:05:30]} Nbd7 {[%emt 0:05:30]} 12. a3 {[%emt 0:06:30]} Rc8 {[%emt 0:02:30]} 13. O-O-O {[%emt 0:01:30]} Qc7 {[%emt 0:05:30]} 14. Kb1 {[%emt 0:00:30]} Qc4 {[%emt 0:04:30]} 15. Qf3 {[%emt 0:08:30]} d5 {[%emt 0:08:30]} 16. Na5 {[%emt 0:07:30]} dxe4 {[%emt 0:01:30]} 17. Qh3 {[%emt 0:00:30]} Qc7 {[%emt 0:00:30]} 18. Nxb7 {[%emt 0:00:30]} Qxb7 {[%emt 0:00:00]} 19. g5 {[%emt 0:04:30]} Nd5 {[%emt 0:01:00]} 20. Nxd5 {[%emt 0:06:23]} exd5 {[%emt 0:01:30]} 21. Qf5 {[%emt 0:00:03]} Bc5 {[%emt 0:03:30]} 22. Rxd5 {[%emt 0:01:11]} Bxe3 {[%emt 0:01:30]} 23. Qxe4+ {[%emt 0:00:07]} Kf8 {[%emt 0:01:30]} 24. Qxe3 {[%emt 0:00:21]} Qc7 {[%emt 0:00:30]} 25. Re1 {[%emt 0:11:50]} Nb6 {[%emt 0:05:30]} 26. Re5 {[%emt 0:00:02]} Kg8 {[%emt 0:01:30]} 27. Re8+ {[%emt 0:01:34]} Kh7 {[%emt 0:01:30]} 28. Be4+ {[%emt 0:00:20]} g6 {[%emt 0:00:30]} 29. Bxg6+ {[%emt 0:00:35]} Kg7 {[%emt 0:01:30]} 30. gxh6+ {[%emt 0:00:14]} Rxh6 {[%emt 0:00:30]} 31. Bxf7 {[%emt 0:01:13]} Qxf4 {[%emt 0:01:30]} 32. Rg1+ {[%emt 0:00:18]} 1-0

[Event "World Junior U20 Open 2018"]
[Site "Gebze"]
[Date "2018.09.06"]
[Round "2.78"]
[White "Ozsakallioglu, Okan"]
[Black "Gulbeyaz, Emir"]
[Result "1/2-1/2"]
[ECO "B09"]
[WhiteElo "1955"]
[BlackElo "2285"]
[Annotator "ChessBase"]
[PlyCount "64"]
[EventDate "2018.09.05"]
[EventType "swiss"]
[EventCountry "TUR"]
[SourceTitle "playchess.com"]
[Source "ChessBase"]
[SourceQuality "1"]
[TimeControl "40/5400+30:1800+30"]

1. e4 {[%emt 0:00:30]} g6 {[%emt 0:00:30]} 2. d4 {[%emt 0:00:30]} Bg7 {[%emt 0:00:00]} 3. Nc3 {[%emt 0:00:00]} d6 {[%emt 0:00:00]} 4. f4 {[%emt 0:00:00]} Nf6 {[%emt 0:00:30]} 5. Nf3 {[%emt 0:00:30]} c5 {[%emt 0:00:30]} 6. Bb5+ {[%emt 0:01:30]} Nfd7 {[%emt 0:07:30]} 7. dxc5 {[%emt 0:05:30]} dxc5 {[%emt 0:01:30]} 8. e5 {[%emt 0:01:30]} O-O {[%emt 0:00:30]} 9. O-O {[%emt 0:02:30]} a6 {[%emt 0:06:30]} 10. Bc4 {[%emt 0:07:30]} Nb6 {[%emt 0:02:30]} 11. Qxd8 {[%emt 0:03:30]} Rxd8 {[%emt 0:00:30]} 12. Bd3 {[%emt 0:00:30]} Bf5 {[%emt 0:09:30]} 13. Bxf5 {[%emt 0:09:30]} gxf5 {[%emt 0:00:30]} 14. Be3 {[%emt 0:00:30]} N8d7 {[%emt 0:00:30]} 15. a4 {[%emt 0:00:30]} e6 {[%emt 0:00:30]} 16. a5 {[%emt 0:00:30]} Nc4 {[%emt 0:00:30]} 17. Bc1 {[%emt 0:00:30]} b6 {[%emt 0:00:30]} 18. axb6 {[%emt 0:00:30]} Ncxb6 {[%emt 0:00:30]} 19. Rd1 {[%emt 0:00:30]} f6 {[%emt 0:00:30]} 20. exf6 {[%emt 0:00:30]} Bxf6 {[%emt 0:00:30]} 21. Re1 {[%emt 0:00:30]} Kf7 {[%emt 0:00:30]} 22. Na4 {[%emt 0:00:30]} Nd5 {[%emt 0:00:30]} 23. c3 {[%emt 0:00:30]} Rg8 {[%emt 0:00:30]} 24. Re2 {[%emt 0:00:30]} Rg4 {[%emt 0:00:30]} 25. h3 {[%emt 0:00:30]} Rg3 {[%emt 0:00:30]} 26. Kh2 {[%emt 0:00:30]} Rag8 {[%emt 0:00:30]} 27. c4 {[%emt 0:00:30]} Nb4 {[%emt 0:00:30]} 28. Ng5+ {[%emt 0:00:30]} R3xg5 {[%emt 0:00:30]} 29. fxg5 {[%emt 0:00:30]} Bd4 {[%emt 0:00:30]} 30. Bd2 {[%emt 0:00:30]} e5 {[%emt 0:00:30]} 31. Bc3 {[%emt 0:43:30]} Rb8 {[%emt 0:59:11]} 32. Bxb4 {[%emt 0:08:01]} Rxb4 {[%emt 0:00:23]} 1/2-1/2